[Event "Early-Titled-Tuesday-Blitz-May-14-2024"]
[Site "Chess.com"]
[Date "2024.05.14"]
[Round "9"]
[White "RandomNoob04"]
[Black "nabukatnezarr"]
[Result "0-1"]
[WhiteElo "2714"]
[BlackElo "2627"]
[TimeControl "180+1"]
[EndTime "9:48:12 PDT"]
[Termination "nabukatnezarr won by resignation"]

1. e4 {[%clk 0:03:00.9]} 1... c5 {[%clk 0:02:54.1]} 2. d4 {[%clk 0:03:01.2]}
2... cxd4 {[%clk 0:02:53.6]} 3. c3 {[%clk 0:03:01.8]} 3... Nf6 {[%clk
0:02:50.5]} 4. e5 {[%clk 0:03:02.2]} 4... Nd5 {[%clk 0:02:50.6]} 5. Nf3 {[%clk
0:03:03.1]} 5... d6 {[%clk 0:02:48.7]} 6. Bc4 {[%clk 0:03:03]} 6... e6 {[%clk
0:02:46.6]} 7. cxd4 {[%clk 0:03:02.6]} 7... Nc6 {[%clk 0:02:44.2]} 8. O-O {[%clk
0:03:03.3]} 8... Be7 {[%clk 0:02:42.2]} 9. Qe2 {[%clk 0:03:03.8]} 9... Nb6
{[%clk 0:02:29.9]} 10. Bb3 {[%clk 0:03:02.7]} 10... O-O {[%clk 0:02:12.1]} 11.
Nc3 {[%clk 0:03:02.9]} 11... Bd7 {[%clk 0:01:54.3]} 12. Bc2 {[%clk 0:02:55.5]}
12... Nb4 {[%clk 0:01:48.8]} 13. exd6 {[%clk 0:02:51.1]} 13... Bxd6 {[%clk
0:01:46.3]} 14. Bxh7+ {[%clk 0:02:50.4]} 14... Kxh7 {[%clk 0:01:34.1]} 15. Ng5+
{[%clk 0:02:50.8]} 15... Kg6 {[%clk 0:01:32.7]} 16. Nce4 {[%clk 0:02:50]} 16...
Qc7 {[%clk 0:01:15.7]} 17. h4 {[%clk 0:02:41.3]} 17... Rh8 {[%clk 0:01:10.6]}
18. f4 {[%clk 0:02:21.5]} 18... f5 {[%clk 0:01:03.8]} 19. h5+ {[%clk 0:02:08.9]}
19... Rxh5 {[%clk 0:01:02.3]} 20. Ng3 {[%clk 0:02:09.6]} 20... Rh6 {[%clk
0:00:57.5]} 21. Nxe6 {[%clk 0:02:09.9]} 21... Qc4 {[%clk 0:00:48.9]} 22. Ng5
{[%clk 0:01:50.6]} 22... Qxe2 {[%clk 0:00:44.3]} 23. Nxe2 {[%clk 0:01:51.5]}
23... Nd3 {[%clk 0:00:39.1]} 24. Bd2 {[%clk 0:01:49.7]} 24... Rah8 {[%clk
0:00:38.4]} 25. Nh3 {[%clk 0:01:47]} 25... Nxb2 {[%clk 0:00:30.5]} 26. Rab1
{[%clk 0:01:43.4]} 26... N2c4 {[%clk 0:00:30.8]} 27. Bc1 {[%clk 0:01:42.3]}
27... Bc6 {[%clk 0:00:29]} 28. Rb3 {[%clk 0:01:40.1]} 28... Be4 {[%clk
0:00:27.4]} 29. Rg3+ {[%clk 0:01:40.2]} 29... Kf6 {[%clk 0:00:26.6]} 30. Nc3
{[%clk 0:01:39.7]} 30... Bc6 {[%clk 0:00:23]} 31. Rd1 {[%clk 0:01:34.1]} 31...
Nd5 {[%clk 0:00:23.5]} 32. Ne2 {[%clk 0:01:32.2]} 32... Ba4 {[%clk 0:00:21.6]}
33. Rf1 {[%clk 0:01:29.2]} 33... b5 {[%clk 0:00:19.8]} 34. Kf2 {[%clk
0:01:24.3]} 34... Ke7 {[%clk 0:00:19.7]} 35. Rxg7+ {[%clk 0:01:23.8]} 35... Kd8
{[%clk 0:00:17.6]} 36. Rxa7 {[%clk 0:01:24.1]} 36... Nf6 {[%clk 0:00:17.7]} 37.
Ng5 {[%clk 0:01:16.4]} 37... Ng4+ {[%clk 0:00:18.1]} 38. Kg3 {[%clk 0:01:17]}
38... Rf8 {[%clk 0:00:07.7]} 39. Nf7+ {[%clk 0:01:16.3]} 39... Rxf7 {[%clk
0:00:07.7]} 40. Rxf7 {[%clk 0:01:17.2]} 40... Rg6 {[%clk 0:00:07.2]} 41. Kh3
{[%clk 0:01:12.5]} 41... Rh6+ {[%clk 0:00:06.5]} 42. Kg3 {[%clk 0:01:13.2]}
42... Rg6 {[%clk 0:00:06.8]} 43. Rh1 {[%clk 0:01:08.3]} 43... Nge5+ {[%clk
0:00:05.6]} 44. Kf2 {[%clk 0:01:00.9]} 44... Nxf7 {[%clk 0:00:06.5]} 45. g3
{[%clk 0:01:01.8]} 45... Ke7 {[%clk 0:00:07]} 46. Rh7 {[%clk 0:01:01.7]} 46...
Bc2 {[%clk 0:00:07.3]} 47. Rh1 {[%clk 0:01:01]} 47... Be4 {[%clk 0:00:07.2]} 48.
Re1 {[%clk 0:00:59.4]} 48... Bb4 {[%clk 0:00:07.4]} 49. Rd1 {[%clk 0:00:58.8]}
49... Nfd6 {[%clk 0:00:07.5]} 50. d5 {[%clk 0:00:58.4]} 50... Kd7 {[%clk
0:00:07.7]} 51. Nd4 {[%clk 0:00:58.9]} 51... Bxd5 {[%clk 0:00:07.8]} 52. Nxf5
{[%clk 0:00:53.5]} 52... Nxf5 {[%clk 0:00:07.2]} 53. Rxd5+ {[%clk 0:00:54.2]}
53... Kc6 {[%clk 0:00:07]} 54. Rxf5 {[%clk 0:00:54.1]} 54... Bc5+ {[%clk
0:00:06.9]} 55. Kf3 {[%clk 0:00:53.8]} 55... Rd6 {[%clk 0:00:06.3]} 56. Ke2
{[%clk 0:00:45]} 56... Re6+ {[%clk 0:00:06.4]} 57. Kf3 {[%clk 0:00:44.6]} 57...
Rd6 {[%clk 0:00:06.5]} 58. Ke2 {[%clk 0:00:45]} 58... Re6+ {[%clk 0:00:07]} 59.
Kf3 {[%clk 0:00:44.4]} 59... Re1 {[%clk 0:00:07.6]} 60. Rf6+ {[%clk 0:00:33.6]}
60... Kd5 {[%clk 0:00:08]} 61. Rf5+ {[%clk 0:00:33.9]} 61... Kd4 {[%clk
0:00:08.6]} 62. g4 {[%clk 0:00:25.4]} 62... Rxc1 {[%clk 0:00:08.4]} 63. g5
{[%clk 0:00:26.3]} 63... Rc3+ {[%clk 0:00:08.7]} 64. Kf2 {[%clk 0:00:26]} 64...
Bb6 {[%clk 0:00:06.4]} 65. Rxb5 {[%clk 0:00:24.5]} 65... Ke4+ {[%clk 0:00:06]}
66. Kf1 {[%clk 0:00:23.3]} 66... Ne3+ {[%clk 0:00:06.1]} 67. Ke2 {[%clk
0:00:23.5]} 67... Rc2+ {[%clk 0:00:06]} 68. Ke1 {[%clk 0:00:23.5]} 68... Bd4
{[%clk 0:00:06.2]} 69. Rb3 {[%clk 0:00:18.4]} 69... Kf3 {[%clk 0:00:06.4]} 0-1

[Event "Early-Titled-Tuesday-Blitz-May-14-2024"]
[Site "Chess.com"]
[Date "2024.05.14"]
[Round "9"]
[White "Niktlt"]
[Black "WilsonPalencia21"]
[Result "0-1"]
[WhiteElo "2694"]
[BlackElo "2603"]
[TimeControl "180+1"]
[EndTime "9:48:12 PDT"]
[Termination "WilsonPalencia21 won by resignation"]

1. d4 {[%clk 0:03:00.9]} 1... Nf6 {[%clk 0:02:59.8]} 2. c4 {[%clk 0:02:59.6]}
2... c5 {[%clk 0:02:59.7]} 3. Nf3 {[%clk 0:02:59.1]} 3... g6 {[%clk 0:02:59.8]}
4. Nc3 {[%clk 0:02:58]} 4... Bg7 {[%clk 0:03:00.2]} 5. e3 {[%clk 0:02:53.1]}
5... O-O {[%clk 0:02:59.5]} 6. Be2 {[%clk 0:02:52.7]} 6... d6 {[%clk 0:02:59.9]}
7. b3 {[%clk 0:02:52.9]} 7... d5 {[%clk 0:02:59.6]} 8. Bb2 {[%clk 0:02:51.8]}
8... cxd4 {[%clk 0:02:59.1]} 9. Nxd4 {[%clk 0:02:51.4]} 9... Nc6 {[%clk
0:02:53.9]} 10. Nxc6 {[%clk 0:02:37.4]} 10... bxc6 {[%clk 0:02:52.7]} 11. cxd5
{[%clk 0:02:36.7]} 11... cxd5 {[%clk 0:02:50.8]} 12. O-O {[%clk 0:02:37.1]}
12... e5 {[%clk 0:02:37.6]} 13. Rc1 {[%clk 0:02:26.7]} 13... Be6 {[%clk
0:02:37.3]} 14. Na4 {[%clk 0:02:22.8]} 14... Qb8 {[%clk 0:02:19.2]} 15. f4
{[%clk 0:02:16.5]} 15... exf4 {[%clk 0:01:40.1]} 16. exf4 {[%clk 0:02:17.4]}
16... Rd8 {[%clk 0:01:25.9]} 17. Be5 {[%clk 0:02:15.4]} 17... Qb7 {[%clk
0:01:18.3]} 18. Qd4 {[%clk 0:02:07.2]} 18... Ne8 {[%clk 0:01:17.8]} 19. Bd3
{[%clk 0:01:52.6]} 19... f6 {[%clk 0:01:11.3]} 20. Nc5 {[%clk 0:01:31.9]} 20...
Qe7 {[%clk 0:00:50.1]} 21. Nxe6 {[%clk 0:01:10.4]} 21... fxe5 {[%clk 0:00:49.7]}
22. Qc5 {[%clk 0:00:38.4]} 22... Qxe6 {[%clk 0:00:46.2]} 23. f5 {[%clk 0:00:39]}
23... gxf5 {[%clk 0:00:40.6]} 24. Bxf5 {[%clk 0:00:39.7]} 24... Qb6 {[%clk
0:00:40.6]} 25. Qxb6 {[%clk 0:00:36.7]} 25... axb6 {[%clk 0:00:40.8]} 26. Be6+
{[%clk 0:00:35.4]} 26... Kh8 {[%clk 0:00:40.8]} 27. Rfd1 {[%clk 0:00:33.3]}
27... d4 {[%clk 0:00:37.5]} 28. a4 {[%clk 0:00:31.1]} 28... Nd6 {[%clk
0:00:21.2]} 29. Rc6 {[%clk 0:00:23.7]} 29... Rab8 {[%clk 0:00:18.1]} 30. Bd5
{[%clk 0:00:18.6]} 30... Nf5 {[%clk 0:00:18.1]} 31. Be4 {[%clk 0:00:18.1]} 31...
Ne3 {[%clk 0:00:17.8]} 32. Rd3 {[%clk 0:00:18.3]} 32... Rdc8 {[%clk 0:00:17.1]}
33. b4 {[%clk 0:00:15.7]} 33... Rxc6 {[%clk 0:00:16.8]} 34. Bxc6 {[%clk
0:00:16.6]} 34... Rc8 {[%clk 0:00:16]} 35. b5 {[%clk 0:00:17.1]} 35... Rf8
{[%clk 0:00:16.1]} 36. h3 {[%clk 0:00:16.8]} 36... Bf6 {[%clk 0:00:16.1]} 37.
Rb3 {[%clk 0:00:14.8]} 37... Bd8 {[%clk 0:00:15.5]} 38. a5 {[%clk 0:00:14.6]}
38... bxa5 {[%clk 0:00:16]} 39. b6 {[%clk 0:00:15.5]} 39... Be7 {[%clk
0:00:15.9]} 40. b7 {[%clk 0:00:15.8]} 40... Bd6 {[%clk 0:00:16.1]} 41. Rb5
{[%clk 0:00:14.5]} 41... a4 {[%clk 0:00:14.8]} 42. Ra5 {[%clk 0:00:15]} 42... a3
{[%clk 0:00:14.8]} 43. Ra8 {[%clk 0:00:15.4]} 43... Rb8 {[%clk 0:00:15]} 44. Ra4
{[%clk 0:00:13.9]} 44... Kg7 {[%clk 0:00:14.9]} 45. Kf2 {[%clk 0:00:13.9]} 45...
Kf6 {[%clk 0:00:15.2]} 46. Kf3 {[%clk 0:00:14.5]} 46... Kf5 {[%clk 0:00:14.9]}
47. Be4+ {[%clk 0:00:14.8]} 47... Ke6 {[%clk 0:00:15.4]} 48. Bc6 {[%clk
0:00:14.1]} 48... Nd5 {[%clk 0:00:15.1]} 49. Ra5 {[%clk 0:00:11.5]} 49... Nc3
{[%clk 0:00:14.9]} 50. g4 {[%clk 0:00:09.5]} 50... Bb4 {[%clk 0:00:14.5]} 51.
Ra8 {[%clk 0:00:08.6]} 51... Bd6 {[%clk 0:00:14.5]} 52. Ra5 {[%clk 0:00:08]}
52... a2 {[%clk 0:00:12.4]} 53. Kg2 {[%clk 0:00:06.3]} 53... h6 {[%clk
0:00:12.7]} 54. h4 {[%clk 0:00:06.1]} 54... e4 {[%clk 0:00:12.9]} 55. Bxe4
{[%clk 0:00:05.1]} 55... Nxe4 {[%clk 0:00:12.3]} 56. Rxa2 {[%clk 0:00:05.9]}
56... Rxb7 {[%clk 0:00:12.8]} 57. Re2 {[%clk 0:00:06.8]} 57... Kd5 {[%clk
0:00:13.2]} 58. Ra2 {[%clk 0:00:06.9]} 58... d3 {[%clk 0:00:12.4]} 59. Ra5+
{[%clk 0:00:07.6]} 59... Bc5 {[%clk 0:00:12.9]} 60. Kf3 {[%clk 0:00:08.5]} 60...
Nd2+ {[%clk 0:00:12.8]} 61. Kf4 {[%clk 0:00:07.8]} 61... Rf7+ {[%clk 0:00:11.9]}
62. Kg3 {[%clk 0:00:07.5]} 62... Ne4+ {[%clk 0:00:12.3]} 63. Kg2 {[%clk
0:00:08]} 63... d2 {[%clk 0:00:12.7]} 64. Ra1 {[%clk 0:00:07.8]} 64... Bd4
{[%clk 0:00:12.8]} 65. Rd1 {[%clk 0:00:08.3]} 65... Be3 {[%clk 0:00:13]} 66. g5
{[%clk 0:00:08.4]} 66... hxg5 {[%clk 0:00:12.8]} 67. hxg5 {[%clk 0:00:09.3]}
67... Bxg5 {[%clk 0:00:13.1]} 68. Kg1 {[%clk 0:00:09]} 68... Nc3 {[%clk
0:00:13.2]} 69. Rxd2+ {[%clk 0:00:09]} 69... Bxd2 {[%clk 0:00:13.6]} 70. Kg2
{[%clk 0:00:09.9]} 70... Be3 {[%clk 0:00:13.5]} 0-1

[Event "Early-Titled-Tuesday-Blitz-May-14-2024"]
[Site "Chess.com"]
[Date "2024.05.14"]
[Round "9"]
[White "David_George21"]
[Black "aloe_normansen"]
[Result "1/2-1/2"]
[WhiteElo "2388"]
[BlackElo "2562"]
[TimeControl "180+1"]
[EndTime "9:48:15 PDT"]
[Termination "Game drawn - insufficient material"]

1. e4 {[%clk 0:02:36.4]} 1... e5 {[%clk 0:02:57.4]} 2. Nf3 {[%clk 0:02:36.2]}
2... Nc6 {[%clk 0:02:57.3]} 3. Bb5 {[%clk 0:02:36.7]} 3... a6 {[%clk 0:02:57]}
4. Ba4 {[%clk 0:02:37.2]} 4... Nf6 {[%clk 0:02:56.5]} 5. O-O {[%clk 0:02:37.8]}
5... b5 {[%clk 0:02:55]} 6. Bb3 {[%clk 0:02:38.2]} 6... Bc5 {[%clk 0:02:55.8]}
7. Re1 {[%clk 0:02:36.7]} 7... O-O {[%clk 0:02:51.5]} 8. c3 {[%clk 0:02:36.3]}
8... d6 {[%clk 0:02:50.8]} 9. h3 {[%clk 0:02:36.9]} 9... Bb7 {[%clk 0:02:46.6]}
10. d4 {[%clk 0:02:37]} 10... Bb6 {[%clk 0:02:46.6]} 11. Bg5 {[%clk 0:02:37.6]}
11... h6 {[%clk 0:02:44.8]} 12. Bh4 {[%clk 0:02:37.9]} 12... Re8 {[%clk
0:02:32.1]} 13. Na3 {[%clk 0:02:33]} 13... g5 {[%clk 0:02:26.8]} 14. Nxg5 {[%clk
0:02:21.2]} 14... hxg5 {[%clk 0:02:26.8]} 15. Bxg5 {[%clk 0:02:22.1]} 15... Kg7
{[%clk 0:01:53.7]} 16. Qf3 {[%clk 0:02:19.4]} 16... Rg8 {[%clk 0:01:40.5]} 17.
Qg3 {[%clk 0:01:20.9]} 17... Kf8 {[%clk 0:01:35]} 18. Qh4 {[%clk 0:01:19.9]}
18... Rg6 {[%clk 0:01:29.1]} 19. f4 {[%clk 0:01:04.7]} 19... exd4 {[%clk
0:01:23.9]} 20. Kh1 {[%clk 0:00:53.1]} 20... dxc3 {[%clk 0:01:18]} 21. bxc3
{[%clk 0:00:54]} 21... Na5 {[%clk 0:00:58.7]} 22. e5 {[%clk 0:00:50.8]} 22...
dxe5 {[%clk 0:00:55.8]} 23. fxe5 {[%clk 0:00:51.7]} 23... Bxg2+ {[%clk
0:00:43.9]} 24. Kxg2 {[%clk 0:00:46.4]} 24... Qd2+ {[%clk 0:00:43.4]} 25. Kh1
{[%clk 0:00:37.2]} 25... Rxg5 {[%clk 0:00:40.1]} 26. Qh6+ {[%clk 0:00:16.2]}
26... Kg8 {[%clk 0:00:38.1]} 27. Re2 {[%clk 0:00:16.3]} 27... Qf4 {[%clk
0:00:25]} 28. Qxf6 {[%clk 0:00:08.6]} 28... Qxf6 {[%clk 0:00:15]} 29. exf6
{[%clk 0:00:09.5]} 29... Nxb3 {[%clk 0:00:15.7]} 30. axb3 {[%clk 0:00:09.5]}
30... Kh7 {[%clk 0:00:15]} 31. Rf1 {[%clk 0:00:08.1]} 31... Rag8 {[%clk
0:00:11.8]} 32. Kh2 {[%clk 0:00:07.3]} 32... c6 {[%clk 0:00:10.5]} 33. Nc2
{[%clk 0:00:06]} 33... Bc7+ {[%clk 0:00:09.8]} 34. Kh1 {[%clk 0:00:05.7]} 34...
Rg3 {[%clk 0:00:10.6]} 35. Re3 {[%clk 0:00:04.7]} 35... Rxe3 {[%clk 0:00:09]}
36. Nxe3 {[%clk 0:00:05.6]} 36... Rg3 {[%clk 0:00:09.5]} 37. Nf5 {[%clk
0:00:03.5]} 37... Rxh3+ {[%clk 0:00:08.8]} 38. Kg2 {[%clk 0:00:03.8]} 38... Rxc3
{[%clk 0:00:08.9]} 39. Ne7 {[%clk 0:00:04]} 39... Rg3+ {[%clk 0:00:07.3]} 40.
Kf2 {[%clk 0:00:03.8]} 40... Rh3 {[%clk 0:00:06.7]} 41. Rc1 {[%clk 0:00:02.4]}
41... c5 {[%clk 0:00:04.3]} 42. b4 {[%clk 0:00:01.7]} 42... c4 {[%clk
0:00:04.3]} 43. Kg2 {[%clk 0:00:00.9]} 43... Rh6 {[%clk 0:00:04.2]} 44. Rd1
{[%clk 0:00:01.3]} 44... Rxf6 {[%clk 0:00:04]} 45. Nd5 {[%clk 0:00:02]} 45...
Rg6+ {[%clk 0:00:03.8]} 46. Kf3 {[%clk 0:00:01.8]} 46... Bd6 {[%clk 0:00:04.7]}
47. Ke4 {[%clk 0:00:02.1]} 47... Re6+ {[%clk 0:00:02.6]} 48. Kf5 {[%clk
0:00:01.9]} 48... Kg7 {[%clk 0:00:03.3]} 49. Rg1+ {[%clk 0:00:01.8]} 49... Rg6
{[%clk 0:00:03.8]} 50. Re1 {[%clk 0:00:01.6]} 50... Rg3 {[%clk 0:00:02.7]} 51.
Ra1 {[%clk 0:00:01.6]} 51... c3 {[%clk 0:00:03]} 52. Rxa6 {[%clk 0:00:01.5]}
52... c2 {[%clk 0:00:03.2]} 53. Rc6 {[%clk 0:00:01.4]} 53... Bxb4 {[%clk
0:00:02.2]} 54. Nxb4 {[%clk 0:00:01.4]} 54... Rb3 {[%clk 0:00:02.1]} 55. Nxc2
{[%clk 0:00:01.6]} 55... Rf3+ {[%clk 0:00:01.9]} 56. Ke4 {[%clk 0:00:01.7]}
56... Rf6 {[%clk 0:00:02.5]} 57. Rxf6 {[%clk 0:00:00.9]} 57... Kxf6 {[%clk
0:00:03.4]} 58. Kd4 {[%clk 0:00:00.8]} 58... b4 {[%clk 0:00:04.3]} 59. Nxb4
{[%clk 0:00:00.7]} 59... Kg5 {[%clk 0:00:05]} 60. Nd3 {[%clk 0:00:00.8]} 60...
f5 {[%clk 0:00:05.7]} 61. Ke5 {[%clk 0:00:01.2]} 61... f4 {[%clk 0:00:06.1]} 62.
Nxf4 {[%clk 0:00:02.1]} 1/2-1/2

[Event "Early-Titled-Tuesday-Blitz-May-14-2024"]
[Site "Chess.com"]
[Date "2024.05.14"]
[Round "9"]
[White "Yaacovn"]
[Black "Moon_stone123"]
[Result "1/2-1/2"]
[WhiteElo "2793"]
[BlackElo "2624"]
[TimeControl "180+1"]
[EndTime "9:48:17 PDT"]
[Termination "Game drawn - insufficient material"]

1. d4 {[%clk 0:01:59.7]} 1... d5 {[%clk 0:02:45.5]} 2. e3 {[%clk 0:01:52.4]}
2... Nf6 {[%clk 0:02:43]} 3. Bd3 {[%clk 0:01:41.5]} 3... c5 {[%clk 0:02:34.5]}
4. c3 {[%clk 0:01:26.4]} 4... cxd4 {[%clk 0:02:31.3]} 5. exd4 {[%clk 0:01:10.1]}
5... Nc6 {[%clk 0:02:31.7]} 6. Bf4 {[%clk 0:01:10.1]} 6... Bg4 {[%clk
0:02:28.7]} 7. Qb3 {[%clk 0:01:09.8]} 7... Qd7 {[%clk 0:02:28.2]} 8. Nd2 {[%clk
0:01:09.7]} 8... e6 {[%clk 0:02:27.2]} 9. Ngf3 {[%clk 0:01:09.6]} 9... Bxf3
{[%clk 0:02:24.4]} 10. Nxf3 {[%clk 0:00:11.7]} 10... Bd6 {[%clk 0:02:24.5]} 11.
Bg3 {[%clk 0:00:11.4]} 11... O-O {[%clk 0:02:23.8]} 12. Qd1 {[%clk 0:00:10.9]}
12... Rab8 {[%clk 0:02:22.4]} 13. Qe2 {[%clk 0:00:11.4]} 13... a6 {[%clk
0:02:17.2]} 14. a4 {[%clk 0:00:11.7]} 14... Qc7 {[%clk 0:01:52.9]} 15. Bxd6
{[%clk 0:00:10.7]} 15... Qxd6 {[%clk 0:01:53.4]} 16. Ne5 {[%clk 0:00:11.6]}
16... Nd7 {[%clk 0:01:37.1]} 17. f4 {[%clk 0:00:11.8]} 17... g6 {[%clk
0:01:19.2]} 18. O-O {[%clk 0:00:11.2]} 18... f6 {[%clk 0:01:18.4]} 19. Nxd7
{[%clk 0:00:11]} 19... Qxd7 {[%clk 0:01:19.3]} 20. Rae1 {[%clk 0:00:11.4]} 20...
Rbe8 {[%clk 0:01:17.6]} 21. Rf3 {[%clk 0:00:11.2]} 21... Kg7 {[%clk 0:01:17.4]}
22. Re3 {[%clk 0:00:11.3]} 22... Kf7 {[%clk 0:01:07.9]} 23. g4 {[%clk
0:00:11.2]} 23... Qd6 {[%clk 0:01:03.4]} 24. Qf2 {[%clk 0:00:10.6]} 24... Kg7
{[%clk 0:00:58.6]} 25. Qg3 {[%clk 0:00:09.7]} 25... Re7 {[%clk 0:00:50.2]} 26.
h4 {[%clk 0:00:10.1]} 26... Rfe8 {[%clk 0:00:48.7]} 27. g5 {[%clk 0:00:10.4]}
27... fxg5 {[%clk 0:00:46.1]} 28. hxg5 {[%clk 0:00:11.3]} 28... Rf8 {[%clk
0:00:45.8]} 29. Rf1 {[%clk 0:00:10.8]} 29... Ref7 {[%clk 0:00:45.1]} 30. Ref3
{[%clk 0:00:11]} 30... Ne7 {[%clk 0:00:43.4]} 31. Qh4 {[%clk 0:00:11]} 31... Nf5
{[%clk 0:00:42.8]} 32. Bxf5 {[%clk 0:00:11]} 32... Rxf5 {[%clk 0:00:43.7]} 33.
Kg2 {[%clk 0:00:11.5]} 33... Qb6 {[%clk 0:00:37.9]} 34. R3f2 {[%clk 0:00:10.9]}
34... Kg8 {[%clk 0:00:35.8]} 35. Rh1 {[%clk 0:00:11.8]} 35... R8f7 {[%clk
0:00:36]} 36. Kg3 {[%clk 0:00:12.7]} 36... Qc6 {[%clk 0:00:35.2]} 37. a5 {[%clk
0:00:12.2]} 37... Qb5 {[%clk 0:00:34.7]} 38. Re1 {[%clk 0:00:12.7]} 38... Qc6
{[%clk 0:00:26.3]} 39. Rfe2 {[%clk 0:00:12.7]} 39... Qc7 {[%clk 0:00:16.9]} 40.
Rxe6 {[%clk 0:00:11]} 40... Rxf4 {[%clk 0:00:16.9]} 41. Re8+ {[%clk 0:00:10.9]}
41... Rf8 {[%clk 0:00:17.2]} 42. R8e7 {[%clk 0:00:07.3]} 42... Rf3+ {[%clk
0:00:14]} 43. Kg2 {[%clk 0:00:07.7]} 43... Rf2+ {[%clk 0:00:10.4]} 44. Kg1
{[%clk 0:00:08.2]} 44... Rf1+ {[%clk 0:00:07.6]} 45. Rxf1 {[%clk 0:00:08.4]}
45... Rxf1+ {[%clk 0:00:07.7]} 46. Kxf1 {[%clk 0:00:09.3]} 46... Qxe7 {[%clk
0:00:08.3]} 47. Qf4 {[%clk 0:00:10.2]} 47... Qf7 {[%clk 0:00:06.7]} 48. Qf2
{[%clk 0:00:08.7]} 48... Qxf2+ {[%clk 0:00:04.7]} 49. Kxf2 {[%clk 0:00:09.6]}
49... h6 {[%clk 0:00:05.4]} 50. gxh6 {[%clk 0:00:09.6]} 50... Kh7 {[%clk
0:00:05.7]} 51. c4 {[%clk 0:00:10.2]} 51... Kxh6 {[%clk 0:00:02.8]} 52. cxd5
{[%clk 0:00:10]} 52... Kg7 {[%clk 0:00:03.3]} 53. Ke3 {[%clk 0:00:10.9]} 53...
Kf7 {[%clk 0:00:03.9]} 54. Kf4 {[%clk 0:00:10.7]} 54... Ke7 {[%clk 0:00:04.2]}
55. Ke5 {[%clk 0:00:11.1]} 55... Kd7 {[%clk 0:00:04]} 56. Kf6 {[%clk 0:00:10.6]}
56... Kd6 {[%clk 0:00:04.1]} 57. Kxg6 {[%clk 0:00:11.2]} 57... Kxd5 {[%clk
0:00:04.2]} 58. Kf7 {[%clk 0:00:12.1]} 58... Kxd4 {[%clk 0:00:04.7]} 59. Ke7
{[%clk 0:00:13]} 59... Kc5 {[%clk 0:00:05.2]} 60. Kd7 {[%clk 0:00:13.3]} 60...
Kb5 {[%clk 0:00:05]} 61. Kc7 {[%clk 0:00:13.9]} 61... Kxa5 {[%clk 0:00:05.1]}
62. Kxb7 {[%clk 0:00:14.5]} 62... Kb5 {[%clk 0:00:05.6]} 63. Ka7 {[%clk
0:00:15.4]} 63... a5 {[%clk 0:00:05.7]} 64. Kb7 {[%clk 0:00:16.3]} 64... a4
{[%clk 0:00:06.1]} 65. Ka7 {[%clk 0:00:16.8]} 65... Kb4 {[%clk 0:00:06.5]} 66.
Ka6 {[%clk 0:00:17.3]} 66... Kb3 {[%clk 0:00:06.1]} 67. Ka5 {[%clk 0:00:17.8]}
67... Kxb2 {[%clk 0:00:06.3]} 68. Kxa4 {[%clk 0:00:18.1]} 1/2-1/2